Cogmind - Beta 10.1 @@@ ROGUE MODE // 2020.10.19 @ 17:37:02 Player: blelm Result: Self-destructed Performance ------------- Evolutions (1) 500 Regions Visited (3) 600 Robots Destroyed (24) 120 Value Destroyed (602) 602 Prototype IDs (1) 20 Alien Tech Used (0) 0 Bonus (0) 0 TOTAL SCORE: 1842 Bonus ------- None Cogmind --------- Core Integrity 288/400 Matter 229/300 Energy 160/160 System Corruption 0% Temperature Cool (0) Movement Treading (180) Ox1 Location -9/Storage Parts ------- > --- POWER (1) -------- Light Nuclear Core > --- PROPULSION (2) --- Light Treads Light Treads > --- UTILITY (3) ------ High-capacity Storage Unit High-capacity Storage Unit > --- WEAPON (3) ------- Assault Rifle Heavy Assault Rifle Heavy Assault Rifle > --- INVENTORY (20) --- Light Treads Light Treads Light Treads Light Treads Light Treads High-capacity Storage Unit High-capacity Storage Unit High-capacity Storage Unit High-capacity Storage Unit Terrain Scan Processor EM Pulse Gun Medium Laser Improved Light Cannon Grenade Launcher Maul Peak State ------------ > --- POWER ------------ Light Nuclear Core > --- PROPULSION ------- Light Treads Light Treads > --- UTILITY ---------- High-capacity Storage Unit High-capacity Storage Unit > --- WEAPON ----------- Assault Rifle Heavy Assault Rifle Improved Light Cannon > --- INVENTORY -------- Light Treads Light Treads Light Treads Light Treads High-capacity Storage Unit High-capacity Storage Unit High-capacity Storage Unit High-capacity Storage Unit Terrain Scan Processor EM Pulse Gun Medium Laser Grenade Launcher [Rating: 13] Favorites ----------- Power Light Ion Engine Engine Light Ion Engine Power Core Light Nuclear Core Propulsion Light Treads Treads Light Treads Leg Aluminum Leg Utility High-capacity Storage Unit Storage High-capacity Storage Unit Protection Light Armor Plating Weapon Assault Rifle Energy Gun Medium Laser Ballistic Gun Assault Rifle Ballistic Cannon Improved Light Cannon Launcher Grenade Launcher Build | -11 -10 -9 -9 ------- Run | Scr Mat Mat Sto Slots Evolved 2 | . . 2 . Power . | . . . . Propulsion . | . . . . Utility 1 | . . 1 . Weapon 1 | . . 1 . Parts Attached 24 | 3 7 12 2 Power 5 | . . 5 . Engine 4 | . . 4 . Core 1 | . . 1 . Reactor . | . . . . Propulsion 4 | 2 1 1 . Treads 3 | 1 1 1 . Leg 1 | 1 . . . Wheel . | . . . . Hover . | . . . . Flight . | . . . . Utility 4 | . 2 2 . Device . | . . . . Storage 3 | . 1 2 . Processor . | . . . . Hackware . | . . . . Protection 1 | . 1 . . Artifact . | . . . . Weapon 11 | 1 4 4 2 Energy Gun 2 | . 1 1 . Energy Cannon . | . . . . Ballistic Gun 6 | 1 2 2 1 Ballistic Cannon 1 | . . 1 . Launcher 2 | . 1 . 1 Special Weapon . | . . . . Impact Weapon . | . . . . Slashing Weapon . | . . . . Piercing Weapon . | . . . . Special Melee Weapon . | . . . . Unidentified Prototypes 1 | . . 1 . Parts Lost 3 | . . 3 . Power 1 | . . 1 . Propulsion . | . . . . Utility 1 | . . 1 . Weapon 1 | . . 1 . Highest Loss Streak 2 | . . 2 . Average Slot Usage (%) 92 | . 89 96 88 Engine 9 | . 14 7 . Core 2 | . . 2 11 Treads 20 | . 18 21 22 Leg 3 | . 9 . . Storage 19 | . 14 22 22 Protection 5 | . 4 7 . Energy Gun 6 | . 8 6 . Ballistic Gun 24 | . 19 26 32 Naked Turns . | . . . . Heaviest Build 77 | 11 41 77 77 Greatest Support 40 | 10 40 40 40 Greatest Overweight (x) 3 | 1 3 1 1 Average Overweight (x) 1 | 1 1 1 1 Largest Inventory Capacity 20 | 6 14 20 20 Average Capacity 15 | 6 7 19 20 Most Carried 15 | 6 7 15 15 Average Carried 9 | 5 5 11 15 Final Capacity 20 | 6 12 20 20 Final Carried 15 | 3 6 15 15 Class Distribution -------------------- 35% | Mutant 32% | Hauler-Tank 24% | Hauler-Gunner 6% | Tank Dominant Class ---------------- Mutant | -10/Materials Hauler-Tank | -9/Materials Hauler-Gunner | -9/Storage Resources | -11 -10 -9 -9 ----------- Run | Scr Mat Mat Sto Matter Collected 731 | 200 49 439 43 Remotely . | . . . . Salvage Created 787 | . 49 517 221 Parts 53 | . 7 33 13 Haulers Intercepted 2 | . . 1 1 Recyclers Shooed . | . . . . Parts Field Recycled . | . . . . Retrieved Matter . | . . . . Parts Self-Destructed . | . . . . Prevented . | . . . . Kills | -11 -10 -9 -9 ------- Run | Scr Mat Mat Sto Combat Hostiles Destroyed 19 | . 4 10 5 Guns 12 | . 1 9 2 Cannons 1 | . . 1 . AOE 6 | . 3 . 3 Classes Destroyed 7 | . 2 3 2 Builder 1 | . . . 1 Hauler 2 | . . 1 1 Recycler 1 | . . . 1 Watcher 1 | . . 1 . Swarmer 6 | . 3 . 3 Grunt 10 | . 1 7 2 Sentry 3 | . . 3 . Best Kill Streak 4 | . 3 4 4 Combat Bots Only 4 | . 3 4 3 Max Kills in Single Turn 2 | . 2 1 2 Gunslinging . | . . . . Exploded 2 | . 2 . 2 Melee . | . . . . Uniques/NPCs Destroyed . | . . . . Combat | -11 -10 -9 -9 -------- Run | Scr Mat Mat Sto Damage Taken 820 | . 71 523 226 Core 116 | . 4 74 38 Absorbed by Shields . | . . . . Core Remaining (%) 99 | 100 98 . . Volleys Fired 57 | . 7 40 10 Largest 3 | . 2 3 3 Hottest 90 | . 40 90 66 Shots Fired 154 | . 12 120 22 Gun 146 | . 10 118 18 Cannon 2 | . . 2 . Launcher 6 | . 2 . 4 Special . | . . . . Kinetic 131 | . 10 103 18 Thermal 17 | . . 17 . Explosive 6 | . 2 . 4 Electromagnetic . | . . . . Robot Hit Streak 18 | . 10 18 9 Robot Miss Streak 4 | . . 4 1 Penetration Max . | . . . . Secondary Targets . | . . . . Shots Hit Robots 115 | . 10 90 15 Core Hits 46 | . 5 28 13 Critical Hits . | . . . . Critical Kills . | . . . . Critical Parts Destroyed . | . . . . Melee Attacks . | . . . . Impact . | . . . . Slashing . | . . . . Piercing . | . . . . Sneak Attacks . | . . . . Combat Hostiles . | . . . . Follow-up Attacks . | . . . . Damage Inflicted 1752 | . 226 997 529 Guns 1209 | . 92 932 185 Cannons 46 | . . 46 . Explosions 478 | . 134 . 344 Melee . | . . . . Ramming 19 | . . 19 . Kinetic 1093 | . 92 816 185 Thermal 162 | . . 162 . Explosive 478 | . 134 . 344 Electromagnetic . | . . . . Impact . | . . . . Slashing . | . . . . Piercing . | . . . . Highest Corruption . | . . . . Average Corruption . | . . . . Corruption Purged . | . . . . Overload Shots . | . . . . Overflow Damage 43 | . . 16 27 Projectiles 16 | . . 16 . Explosions 27 | . . . 27 Melee . | . . . . Knockbacks . | . . . . Impact . | . . . . Kinetic . | . . . . Secondary . | . . . . Self-Inflicted Damage 13 | . 13 . . Shots 1 | . 1 . . Rammed 5 | . . 5 . Targets Rammed 5 | . . 5 . Kicked . | . . . . Crushed . | . . . . Highest Temperature 202 | . 18 202 27 Average Temperature 41 | . 8 47 10 Received Heat Transfer 330 | . 24 246 60 Siege Activations . | . . . . Robots Corrupted . | . . . . Combat Hostiles . | . . . . Parts Fried . | . . . . Impact Corruptions . | . . . . Robots Melted . | . . . . Combat Hostiles . | . . . . Parts Melted . | . . . . Heat Transferred 481 | . . 481 . Parts Sabotaged . | . . . . Parts Stolen . | . . . . Parts Stripped . | . . . . Power Chain Reactions . | . . . . Missiles Intercepted . | . . . . Alert | -11 -10 -9 -9 ------- Run | Scr Mat Mat Sto Peak Influence 217 | . 88 217 164 Initial 27 | . . 25 27 Average 82 | . 42 107 99 Maximum Alert Level 1 | . . 1 . Low Security (%) 91 | 100 100 84 100 Level 1 8 | . . 15 . Level 2 . | . . . . Level 3 . | . . . . Level 4 . | . . . . Level 5 . | . . . . High Security . | . . . . Max Security . | . . . . Squads Dispatched 5 | . 2 1 2 Investigation 1 | . 1 . . Extermination . | . . . . Reinforcement 3 | . 1 1 1 Assault . | . . . . Garrison 1 | . . . 1 Intercept . | . . . . Construction Impeded 1 | . . . 1 Haulers Reinforced . | . . . . Stealth | -11 -10 -9 -9 --------- Run | Scr Mat Mat Sto Distress Signals . | . . . . Communications Jammed . | . . . . Distress Signals . | . . . . Times Spotted 37 | . 9 18 10 Peak Tracking Total 4 | . 4 3 4 Tactical Retreats 1 | . . 1 . Traps | -11 -10 -9 -9 ------- Run | Scr Mat Mat Sto Traps Triggered . | . . . . Indirectly . | . . . . Trap Hack Attempts . | . . . . Triggered . | . . . . Disarmed . | . . . . Reprogrammed . | . . . . Reused . | . . . . Traps Extracted . | . . . . Installed . | . . . . Triggered . | . . . . Machines | -11 -10 -9 -9 ---------- Run | Scr Mat Mat Sto Machines Disabled 1 | . 1 . . Max in Single Turn 1 | . 1 . . Machines Sabotaged . | . . . . Garrisons Compromised . | . . . . Overloaded Fab Kills . | . . . . Fab Network Shutdowns . | . . . . Hacking | -11 -10 -9 -9 --------- Run | Scr Mat Mat Sto Machines Accessed 7 | . 3 3 1 Terminals 6 | . 2 3 1 Fabricators . | . . . . Repair Stations . | . . . . Recycling Units 1 | . 1 . . Scanalyzers . | . . . . Garrison Access . | . . . . Total Hacks 17 | . 7 7 3 Successful 10 | . 4 5 1 Failed 7 | . 3 2 2 Catastrophic . | . . . . Database Lockouts . | . . . . Manual 11 | . 4 5 2 Terminals 15 | . 5 7 3 Fabricators . | . . . . Repair Stations . | . . . . Recycling Units 2 | . 2 . . Scanalyzers . | . . . . Garrison Access . | . . . . Terminal Hacks 4 | . 1 2 1 Emergency Access Points 1 | . . 1 . Terminal Index 1 | . . . 1 Recall Reinforcements 1 | . 1 . . Hauler Manifests 1 | . . 1 . Fabricator Hacks . | . . . . Repair Station Hacks . | . . . . Recycling Unit Hacks 1 | . 1 . . Retrieve Components 1 | . 1 . . Scanalyzer . | . . . . Garrison Access Hacks . | . . . . Unauthorized Hacks 5 | . 2 3 . Terminals 5 | . 2 3 . Track 4 | . 2 2 . Botnet 1 | . . 1 . Fabricators . | . . . . Repair Stations . | . . . . Recycling Units . | . . . . Scanalyzers . | . . . . Garrison Access . | . . . . Data Cores Recovered . | . . . . Used . | . . . . Hacking Detections 6 | . 3 2 1 Full Trace Events 1 | . 1 . . Feedback Events . | . . . . Feedback Blocked . | . . . . Robot Schematics Acquired . | . . . . Robots Built . | . . . . Matter . | . . . . Time . | . . . . Total Robot Build Rating . | . . . . Part Schematics Acquired . | . . . . Parts Built . | . . . . Matter . | . . . . Time . | . . . . Total Part Build Rating . | . . . . Parts Repaired . | . . . . Time . | . . . . Parts Recycled . | . . . . Recycled Matter . | . . . . Retrieved Matter . | . . . . Retrieved Components . | . . . . Parts Scanalyzed . | . . . . Part Schematics Acquired . | . . . . Parts Damaged . | . . . . Bothacking | -11 -10 -9 -9 ------------ Run | Scr Mat Mat Sto Used RIF Installer . | . . . . Robots Hacked . | . . . . Non-combat . | . . . . Combat . | . . . . Robot Hacks Applied . | . . . . Relay Couplers Released . | . . . . Robots Rewired . | . . . . Allies Hacked . | . . . . Hacks Repelled . | . . . . Allies | -11 -10 -9 -9 -------- Run | Scr Mat Mat Sto Total Allies . | . . . . Largest Group . | . . . . Highest-Rated Group . | . . . . Highest-Rated Ally . | . . . . Total Orders . | . . . . Ally Attacks . | . . . . Total Damage . | . . . . Kills . | . . . . Allies Corrupted . | . . . . Allies Melted . | . . . . Intel | -11 -10 -9 -9 ------- Run | Scr Mat Mat Sto Robot Analysis Total . | . . . . Derelict Logs Recovered . | . . . . Drone Launches . | . . . . Drone Recoveries . | . . . . Exploration | -11 -10 -9 -9 ------------- Run | Scr Mat Mat Sto Turns Passed 1574 | 6 571 868 129 Spaces Moved 650 | 1 291 312 46 Core 113 | . 113 . . Treads 435 | . 77 312 46 Legs 102 | 1 101 . . Wheels . | . . . . Hover . | . . . . Flight . | . . . . Fastest Speed 150 | 150 150 180 180 Average Speed 178 | 150 177 180 180 Slowest Speed 200 | 150 200 180 180 Overloaded Moves . | . . . . Propulsion Burnouts . | . . . . Robots Hopped . | . . . . Cave-ins Triggered . | . . . . Exploration Rate (%) 21 | 2 47 27 11 Regions Visited 3 Branch Regions 1 Pre-discovered Areas . | . . . . Known Exits Taken . | . . . . Unknown Exits Taken 3 | 1 1 1 . Scrap Searched . | . . . . Spaces Dug . | . . . . Terrain Destroyed 32 | . 12 . 20 Melee . | . . . . Projectile . | . . . . AOE 32 | . 12 . 20 Terrain Rammed . | . . . . Walls Destroyed . | . . . . Machines Disabled . | . . . . Actions | -11 -10 -9 -9 --------- Run | Scr Mat Mat Sto Total 948 | 6 334 535 73 Wait 174 | . 22 137 15 Move 647 | . 290 311 46 Hop . | . . . . Pick Up 21 | . 4 17 . Fast Attach 6 | . 2 4 . Attach 6 | . 1 5 . Detach 6 | . 2 4 . Swap 12 | 3 4 3 2 Drop 14 | 3 2 9 . Fire 57 | . 7 40 10 Melee . | . . . . Ram . | . . . . Kick . | . . . . Crush 5 | . . 5 . Escape Stasis . | . . . . Rewire . | . . . . Trap . | . . . . Miscellaneous . | . . . . Route ------- -11/Scrapyard -10/Materials (discovered 2 exits: *Mat x2) -9/Materials -9/Storage History --------- Turn | Location | Event 7 | -11/Scrapyard | Discovered new exit (range 0) 7 | -11/Scrapyard | Entered Materials 307 | -10/Materials | Build established: Mutant 334 | -10/Materials | Discovered new exit (range 7) 541 | -10/Materials | Discovered new exit (range 10) 578 | -10/Materials | Entered another Materials area 578 | -9/Materials | Evolved 2 slots: Utility x1, Weapon x1 982 | -9/Materials | Build established: Hauler-Tank 1201 | -9/Materials | Discovered new exit (range 14) 1446 | -9/Materials | Entered Storage 1518 | -9/Storage | Build established: Hauler-Gunner 1542 | -9/Storage | Garrison activated, responded to threat 1575 | -9/Storage | Self-destructed Last Messages --------------- 01499_ The unstable cave ceiling collapses. 01520_ K-01 Serf collects debris. 01522_ G-34 Mercenary destroyed. 01525_ K-01 Serf collects debris. 01525_ G-34 Mercenary destroyed. 01530_ Acquired 43 matter. 01532_ R-06 Scavenger collects Lgt. Assault Rifle. 01534_ K-01 Serf collects debris. 01535_ The unstable cave ceiling collapses. 01536_ R-06 Scavenger collects Flight Unit. 01538_ K-01 Serf collects debris. 01539_ A-02 Transporter destroyed. 01539_ R-06 Scavenger collects Lgt. Treads. 01540_ K-01 Serf collects debris. 01542_ The unstable cave ceiling collapses. 01542_ R-06 Scavenger calls for garrison support. 01542_ ALERT: Activating Garrison Access S001. 01542_ R-06 Scavenger destroyed. 01543_ Y-45 Defender emerges from the garrison. 01543_ K-01 Serf collects debris. Map ----- +----------------------------------------------------+ | ??????????????????????????????????????? | | ??????????????????????????????????????? | | ??????????????????????????????????????? | | ??????????????????????????????????????? | | ??????????????????????????????????????? | | ??????????????????????????????????????? | | ??????????????????????????????????????? | | ??????????????????????????????????????? | | ??????????????????????????????????????? | | ???????????? ?????????????????????????? | | ???????????? ?????????????????????????? | | ???????????# ?????????????????????????? | | ???????????#g?????????????????????????? | | ???????????# ?????????????????????????? | | ???????????#l?????????????????????????? | | ??????######/###???"""#???????????????? | | ??????# #?##"Y"#???????????????? | | ??????# #? ???????????????? | | ??????# #? """??????????????? | | ??????# # """ #????????????? | | ??????#"""" # """ #????????????? | | ??????#"""" #?" """ #????????????? | | ??????#"""" #?T """ #????????????? | | ??????#""""! #?" = #????????????? | | ??????# =%* !#? ![= ####?????????? | | ?????######+##@###=%! # ###???????? | | ?????# =[=] ????? | | ?????# Y%%%* ????? | | ?????# ]][ = ????? | | ?????####"T"##### #####+??????? | | ????????#####???## ???????? | | ?????????????????# """"" # "??????? | | ?????????????????# "?????# ??????? | | ?????????????????# "??????????"??????? | | ?????????????????# ""?????????????????? | | ?????????????????? "??????????????????? | | ?????????????????? "??????????????????? | | ?????????????????? ??????????????????? | | ?????????????????? ??????????????????? | | ??????????????????##??????????????????? | | ??????????????????????????????????????? | | | | | | | | | | | | | | | | | | | +----------------------------------------------------+ Best States ------------- Heat Dissipation 28 Energy Generation 14 Energy Capacity 250 Matter Stores 300 Matter Capacity 300 Sight Range 16 Terrain Scan Density 10 Armor Coverage 150 Evasion (%) 40 Recoil Reduction 2 Item Schematics ----------------- None Robot Schematics ------------------ None Fabricated ------------ Nothing Alien Tech Used ----------------- None Achievements -------------- None Challenges ------------ None Game ------ Seed PlasmaPotentialActivator Manual? 0 Play Time 00:25:04 Cumulative 3.7 hours Start 2020.10.19 @ 16:10:16 End 2020.10.19 @ 17:37:02 Sessions 1 Manual Loads 0 Difficulty Rogue Special Mode None Game No. 6 Rogue 6 Adventurer 0 Explorer 0 Win Type - Total 0 Types 0/0/0/0/0/0/0/0/0 Lore% 10 Gallery% 5 Achievement% 8 Wizard Run 0 Options --------- ASCII 1 Keyboard 1 Movement Vi Keybinds 0 Fullscreen 1 Font 16/Terminus Map View 75x55 Tactical HUD 1 Map Filters NONE Filters NONE Steam 1 RUN: 824ed1fc-99c1-4f2b-b206-0cb3604b400d